Cogmind - Beta 15 @@@ ROGUE MODE // 2025.09.10 @ 18:44:46 Player: unq Result: Destroyed by F1-3VL(R) with Subdweller Laser Performance ------------- Evolutions (0) 0 Regions Visited (2) 400 Robots Destroyed (26) 130 Value Destroyed (549) 549 Prototype IDs (0) 0 Alien Tech Used (0) 0 Bonus (0) 0 TOTAL SCORE: 1079 Bonus ------- None Cogmind --------- Core Integrity 0/250 Matter 297/300 Energy 125/125 System Corruption 0% Temperature Cool (6) Movement Rolling (107) Ox1 Location -10/Subcaves Parts ------- > --- POWER (1) -------- Light Ion Engine > --- PROPULSION (2) --- Wheel Subdweller Monowheel > --- UTILITY (2) ------ High-capacity Storage Unit Sensor Array > --- WEAPON (2) ------- Particle Gun Battle Rifle > --- INVENTORY (20) --- Light Ion Engine Wheel Wheel Wheel Wheel Large Storage Unit Medium Matter Pod (100) Structural Scanner Machine Analyzer Subdweller Optics Subdweller Optics Seismic Detector Tractor Beam Recalibrator Particle Gun Light Assault Rifle Light Assault Rifle Subdweller Machine Gun Mining Laser Peak State ------------ > --- POWER ------------ Light Ion Engine > --- PROPULSION ------- Subdweller Monowheel Subdweller Monowheel > --- UTILITY ---------- High-capacity Storage Unit Recalibrator > --- WEAPON ----------- Particle Gun Battle Rifle > --- INVENTORY -------- Light Ion Engine Wheel Wheel Wheel Wheel Large Storage Unit Medium Matter Pod Structural Scanner Machine Analyzer Subdweller Optics Sensor Array Seismic Detector Small Laser Particle Gun Light Assault Rifle Mining Laser [Rating: 16] Favorites ----------- Power Light Ion Engine Engine Light Ion Engine Propulsion Light Treads Treads Light Treads Wheel Subdweller Monowheel Utility Seismic Detector Device Seismic Detector Storage High-capacity Storage Unit Protection Light Armor Plating Weapon Small Laser Energy Gun Small Laser Ballistic Gun Assault Rifle Special Weapon Mining Laser Build | -11 -10 -10 ------- Run | Yrd Mat Sub Slots Evolved . | . . . Power . | . . . Propulsion . | . . . Utility . | . . . Weapon . | . . . Parts Attached 25 | 6 17 2 Power 4 | 1 3 . Engine 4 | 1 3 . Core . | . . . Reactor . | . . . Propulsion 6 | 2 3 1 Treads 3 | 2 1 . Leg . | . . . Wheel 3 | . 2 1 Hover . | . . . Flight . | . . . Utility 7 | 1 5 1 Device 5 | 1 3 1 Storage 1 | . 1 . Processor . | . . . Hackware . | . . . Protection 1 | . 1 . Artifact . | . . . Weapon 8 | 2 6 . Energy Gun 3 | 1 2 . Energy Cannon . | . . . Ballistic Gun 4 | 1 3 . Ballistic Cannon . | . . . Launcher . | . . . Special Weapon 1 | . 1 . Impact Weapon . | . . . Slashing Weapon . | . . . Piercing Weapon . | . . . Special Melee Weapon . | . . . Unidentified Prototypes . | . . . Parts Lost 8 | . 8 . Power 2 | . 2 . Propulsion 3 | . 3 . Utility 1 | . 1 . Weapon 2 | . 2 . Highest Loss Streak 3 | . 3 . To Critical Strikes . | . . . Average Backups 8 | 1 7 19 Power . | . 1 1 Propulsion 1 | . 1 4 Utility 3 | . 2 8 Weapon 2 | 1 2 5 Tool/Special . | . . . Unused Backups 15 | . 1 14 Power 1 | . . 1 Propulsion 5 | . 1 4 Utility 6 | . . 6 Weapon 3 | . . 3 Tool/Special . | . . . Average Slot Usage (%) 94 | . 94 97 Engine 13 | . 13 14 Treads 21 | . 23 . Wheel 6 | . 4 28 Device 14 | . 15 12 Storage 7 | . 7 14 Energy Gun 13 | . 13 14 Ballistic Gun 13 | . 13 14 Peak Build Rating 16 | 6 16 12 Average Rating 8 | 4 8 11 On Entrance 6 | . 6 12 Naked Turns . | . . . Heaviest Build 51 | 7 51 49 Greatest Support 40 | 40 40 40 Greatest Overweight (x) 1 | . 1 1 Average Overweight (x) . | . . 1 Largest Inventory Capacity 20 | 5 20 20 Average Capacity 12 | 5 12 20 Most Carried 20 | 3 20 20 Average Carried 8 | 1 8 19 Final Capacity 20 | 5 20 20 Final Carried 20 | 3 20 19 Class Distribution -------------------- 92% | Mutant 7% | Scavenger-Mutant Dominant Class ---------------- Mutant | -10/Materials Mutant | -10/Subcaves Resources | -11 -10 -10 ----------- Run | Yrd Mat Sub Matter Collected 663 | 290 329 44 Remotely . | . . . Salvage Created 761 | 103 564 94 Parts 54 | 11 40 3 Haulers Intercepted 1 | . 1 . Recyclers Shooed . | . . . Parts Field Recycled . | . . . Retrieved Matter . | . . . Parts Self-Destructed . | . . . Prevented . | . . . Kills | -11 -10 -10 ------- Run | Yrd Mat Sub Combat Hostiles Destroyed 19 | . 17 2 Guns 19 | . 17 2 Classes Destroyed 8 | 2 6 . Worker 1 | . 1 . Tunneler 3 | 3 . . Hauler 1 | . 1 . Recycler 1 | 1 . . Operator 1 | . 1 . Swarmer 9 | . 9 . Grunt 6 | . 6 . Subdweller 4 | . 2 2 Best Kill Streak 5 | 3 5 1 Combat Bots Only 5 | . 5 1 Max Kills in Single Turn 1 | 1 1 1 Gunslinging . | . . . Exploded . | . . . Melee . | . . . Uniques/NPCs Destroyed . | . . . Combat | -11 -10 -10 -------- Run | Yrd Mat Sub Hostile Shots Fired 112 | . 100 12 Missed 24 | . 21 3 Hits 88 | . 79 9 Projectile 88 | . 79 9 Critical Strikes 1 | . 1 . Damage Taken 1265 | . 1026 239 Core 255 | . 141 114 Absorbed by Shields . | . . . Core Remaining (%) 100 | 100 . . Volleys Fired 88 | 10 69 9 Largest 2 | 2 2 2 Hottest 100 | 60 100 90 Shots Fired 163 | 20 128 15 Gun 154 | 20 119 15 Cannon . | . . . Launcher . | . . . Special 9 | . 9 . Kinetic 68 | 10 49 9 Thermal 95 | 10 79 6 Explosive . | . . . Electromagnetic . | . . . Robot Hit Streak 17 | 4 16 17 Robot Miss Streak 5 | 3 5 . Penetration Max . | . . . Secondary Targets 7 | . 7 . Max Gunslinging Chain 1 | . 1 . Shots Hit Robots 110 | 11 85 14 Core Hits 43 | 5 33 5 Critical Kills 1 | . 1 . Critical Parts Destroyed . | . . . Critical Strikes 1 | . 1 . Destroy 1 | . 1 . Melee Attacks . | . . . Impact . | . . . Slashing . | . . . Piercing . | . . . Sneak Attacks . | . . . Combat Hostiles . | . . . Follow-up Attacks . | . . . Damage Inflicted 1327 | 131 991 205 Guns 1322 | 131 986 205 Cannons . | . . . Explosions . | . . . Melee . | . . . Ramming 5 | . 5 . Kinetic 648 | 98 435 115 Thermal 674 | 33 551 90 Explosive . | . . . Electromagnetic . | . . . Impact . | . . . Slashing . | . . . Piercing . | . . . Highest Corruption . | . . . Average Corruption . | . . . Corruption Purged . | . . . Corruption Blocked . | . . . Overload Shots . | . . . Overflow Damage . | . . . Projectiles . | . . . Explosions . | . . . Melee . | . . . Knockbacks . | . . . Impact . | . . . Kinetic . | . . . Secondary . | . . . Self-Inflicted Damage . | . . . Shots . | . . . Rammed 2 | . 2 . Targets Rammed 3 | . 3 . Kicked . | . . . Crushed 1 | . 1 . Highest Temperature 252 | . 252 10 Average Temperature 66 | . 69 7 Received Heat Transfer 333 | . 321 12 Siege Activations . | . . . Martial Activations . | . . . Shielding Activations . | . . . Robots Disrupted . | . . . Combat Hostiles . | . . . Robots Corrupted . | . . . Combat Hostiles . | . . . Parts Fried . | . . . Impact Corruptions . | . . . Robots Melted . | . . . Combat Hostiles . | . . . Parts Melted 4 | . 4 . Heat Transferred 1570 | 75 1273 222 Parts Sabotaged . | . . . Parts Stolen . | . . . Parts Stripped . | . . . Power Chain Reactions . | . . . Alert | -11 -10 -10 ------- Run | Yrd Mat Sub Maximum Alert Level . | . . . Low Security (%) 100 | 100 100 . Level 1 . | . . . Level 2 . | . . . Level 3 . | . . . Level 4 . | . . . Level 5 . | . . . High Security . | . . . Max Security . | . . . Peak Influence 123 | 10 123 . Initial . | . . . Average 24 | 1 26 . Influence Increases 432 | 20 412 . Destroy 0b10 Robot/C 300 | . 300 . Destroy 0b10 Robot/NC 35 | 20 15 . Destroy Leader 62 | . 62 . Successful Hack 13 | . 13 . Disable Machine 15 | . 15 . Destroy Structure 7 | . 7 . Influence Decreases 432 | 20 388 24 Entered New Map 12 | . . 12 Time Decay 340 | 20 308 12 Lost Part 70 | . 70 . Lost Ally 10 | . 10 . Squads Dispatched 2 | . 2 . Investigation 1 | . 1 . Extermination . | . . . Reinforcement 1 | . 1 . Assault . | . . . Garrison . | . . . Intercept . | . . . Searches Triggered . | . . . Construction Impeded . | . . . Haulers Reinforced . | . . . Active Scanning Responses . | . . . Cargo Convoy Interrupts . | . . . Stealth | -11 -10 -10 --------- Run | Yrd Mat Sub Distress Signals 3 | . 3 . Communications Jammed . | . . . Distress Signals . | . . . Times Spotted 34 | . 30 4 Peak Tracking Total 5 | . 5 2 Tactical Retreats 1 | . 1 . Traps | -11 -10 -10 ------- Run | Yrd Mat Sub Traps Triggered 2 | . 1 1 Indirectly . | . . . Trap Hack Attempts . | . . . Triggered . | . . . Disarmed . | . . . Reprogrammed . | . . . Reused . | . . . Traps Extracted . | . . . Installed . | . . . Triggered . | . . . Machines | -11 -10 -10 ---------- Run | Yrd Mat Sub Machines Disabled 1 | . 1 . Max in Single Turn 1 | . 1 . Machines Repaired . | . . . Machines Dismantled . | . . . Machines Sabotaged . | . . . Overloaded Fab Kills . | . . . Hacking | -11 -10 -10 --------- Run | Yrd Mat Sub Machines Accessed 9 | . 9 . Terminals 6 | . 6 . Fabricators . | . . . Repair Stations 1 | . 1 . Recycling Units 2 | . 2 . Scanalyzers . | . . . Garrison Access . | . . . Total Hacks 22 | . 22 . Successful 10 | . 10 . Failed 12 | . 12 . Catastrophic . | . . . Database Lockouts . | . . . Manual 10 | . 10 . Terminals 14 | . 14 . Fabricators . | . . . Repair Stations 4 | . 4 . Recycling Units 4 | . 4 . Scanalyzers . | . . . Garrison Access . | . . . Terminal Hacks 4 | . 4 . Part Schematic 1 | . 1 . Locate Traps 2 | . 2 . Registered Components 1 | . 1 . Fabricator Hacks . | . . . Repair Station Hacks 2 | . 2 . Scan Component 2 | . 2 . Recycling Unit Hacks 2 | . 2 . Retrieve Components 2 | . 2 . Scanalyzer . | . . . Garrison Access Hacks . | . . . Unauthorized Hacks 2 | . 2 . Terminals 2 | . 2 . Assimilate 1 | . 1 . Botnet 1 | . 1 . Fabricators . | . . . Repair Stations . | . . . Recycling Units . | . . . Scanalyzers . | . . . Garrison Access . | . . . Data Cores Recovered . | . . . Used . | . . . Hacking Detections 8 | . 8 . Full Trace Events . | . . . Feedback Events . | . . . Feedback Blocked . | . . . Robot Schematics Acquired . | . . . Robots Built . | . . . Authchips . | . . . Time . | . . . Total Robot Build Rating . | . . . Part Schematics Acquired 1 | . 1 . Parts Built . | . . . Authchips . | . . . Time . | . . . Total Part Build Rating . | . . . Parts Repaired . | . . . Time . | . . . Parts Recycled . | . . . Recycled Matter . | . . . Retrieved Matter . | . . . Retrieved Components 9 | . 9 . Parts Scanalyzed . | . . . Part Schematics Acquired . | . . . Parts Damaged . | . . . Bothacking | -11 -10 -10 ------------ Run | Yrd Mat Sub Used RIF Installer . | . . . Robots Hacked . | . . . Non-combat . | . . . Combat . | . . . Robot Hacks Applied . | . . . Relay Couplers Released . | . . . Fabnet Peak Effective % . | . . . Robots Rewired . | . . . Allies Hacked . | . . . Hacks Repelled . | . . . Allies | -11 -10 -10 -------- Run | Yrd Mat Sub Total Allies 1 | . 1 . Largest Group 1 | . 1 . Highest-Rated Group 10 | . 10 . Highest-Rated Ally 10 | . 10 . Total Orders . | . . . Ally Attacks . | . . . Total Damage . | . . . Kills . | . . . Allies Corrupted . | . . . Allies Melted . | . . . Intel | -11 -10 -10 ------- Run | Yrd Mat Sub Active Infowar (turns) 1863 | 86 1594 183 Optics 602 | . 602 . Sensors 183 | . . 183 Seismic 1078 | 86 992 . Robot Analysis Total . | . . . Derelict Logs Recovered . | . . . Drone Launches . | . . . Drone Recoveries . | . . . Exploration | -11 -10 -10 ------------- Run | Yrd Mat Sub Turns Passed 2275 | 159 1914 202 Spaces Moved 981 | 76 767 138 Core 3 | 3 . . Treads 715 | 73 642 . Legs . | . . . Wheels 263 | . 125 138 Hover . | . . . Flight . | . . . Fastest Speed 50 | 50 120 107 Average Speed 168 | 155 180 108 Slowest Speed 240 | 160 240 120 Overloaded Moves . | . . . Propulsion Burnouts . | . . . Robots Hopped . | . . . Potential Cave-ins . | . . . Cave-ins Triggered . | . . . Exploration Rate (%) 38 | 6 98 12 Regions Visited 2 Branch Regions 1 Pre-discovered Areas 1 | . . 1 Known Exits Taken . | . . . Unknown Exits Taken 2 | 1 1 . Scrap Searched . | . . . Spaces Dug 7 | . 7 . Terrain Destroyed 9 | . 9 . Melee . | . . . Projectile 9 | . 9 . AOE . | . . . Terrain Rammed . | . . . Walls Destroyed . | . . . Machines Disabled . | . . . Actions | -11 -10 -10 --------- Run | Yrd Mat Sub Total 1419 | 94 1148 177 Wait 279 | . 255 24 Move 979 | 75 766 138 Hop . | . . . Pick Up 26 | 3 21 2 Fast Attach 14 | 6 8 . Attach 6 | . 5 1 Detach 3 | . 3 . Swap 12 | . 11 1 Drop 9 | . 7 2 Fire 88 | 10 69 9 Melee . | . . . Ram . | . . . Kick . | . . . Crush 3 | . 3 . Escape Stasis . | . . . Rewire . | . . . Trap . | . . . Miscellaneous . | . . . Route ------- -11/Scrapyard -10/Materials (discovered 5 exits: [*Mat x3] / [*Min] / [*Sub]) -10/Subcaves History --------- Turn | Location | Event 11 | -11/Scrapyard | Discovered new exit (range 16) 160 | -11/Scrapyard | Entered Materials 310 | -10/Materials | Build established: Mutant 704 | -10/Materials | Discovered new exit (range 5) 824 | -10/Materials | Discovered new exit (range 4) 960 | -10/Materials | Derelicts attacked the area 1031 | -10/Materials | Discovered new exit (range 7) 1181 | -10/Materials | Core integrity fell below 50% 1207 | -10/Materials | Lost 3 parts (1p1u1w) 1678 | -10/Materials | Discovered new exit (range 9) 1844 | -10/Materials | Discovered new exit (range 9) 2074 | -10/Materials | Entered Subcaves 2075 | -10/Subcaves | Approached by a straggling Scientist 2197 | -10/Subcaves | Core integrity fell below 20% 2275 | -10/Subcaves | Learned location of Zion (-7) 2275 | -10/Subcaves | Met a Zionite searching for "candidates" 2276 | -10/Subcaves | Destroyed by F1-3VL(R) with Subdweller Laser Last Messages --------------- 02112_ Subatomizers dissect the Sub. Optics. 02113_ Acquired Sub. Optics. 5B-Q7Y(c): "I think it's somewhere southeast of here" 02178_ FC-CKQ(R) destroyed. 02181_ Acquired 21 matter. 02183_ Acquired Sub. Machine Gun. 02192_ Subatomizers dissect the Wheel. 02195_ Dropped Sml. Laser. 02196_ Tech Extrapolator violently self-destructs. 02206_ Subatomizers dissect the Wheel. 02209_ Triggered Piercing Trap. 02209_ Spikes shoot up from the floor. 02209_ Critical hit (Impale). 02235_ C2-TT0(z): "She is not going to be happy we haven't found any suitable candidates yet." 02273_ XM-OFM(R) emerges from the Twisted Machinery. 02275_ C2-TT0(z): "Hey you! It's really dangerous down here, I feel that you could die at any moment. For your health and safety might I suggest a trip to Zion?" World map updated: -7/Zion. Map ----- +----------------------------------------------------+ | ???????????????### ### #??????????????????????? | | ???????????####??## #?# #?????????????????????? | | ???????????# %##?## #####% #????????????????????? | | ???????????# ### ## ???????????????????? | | ???????????# #? #??????????????????? | | ???????????## #?# #??????????????????? | | ????????????# #?? ##??????????????????? | | ????????????## % #??? #???????????????????? | | ?????????????# ##???????????????????????? | | ?????????????# % ### #???????????????????????? | | ?????????????# ##?## #???????????????????????? | | ?????????????## ##??## #???????????????????????? | | ??????????????## ##### #??####?????????????????? | | ???????????????### #?# ##???????????????? | | ????????????????# ###? ? ??????????????? | | ?????????????#### ##??? ? ??????????????? | | ?????????????# % ###?? # ???????????????? | | ?????????????# #### ### z# ????????????????? | | ?????????????# ##??## ### # ??##?????????????? | | ????????????## #????# #?# ?? #?????????????? | | ????????????# #????# ### #?? ?##?????????????? | | ????????????# ##??## ### z #?????????????? | | ????????????# #### # ##?????????????? | | ???????????# # # #?????????????? | | ???????????# ## #####?????????? | | ???????????## ?## @ RR [??????? | | ????????????# ???# ## ??????? | | ???????????? ???# ###### #????????? | | ???????????# ???# %####?????? #######????????? | | ???????????# ???# ##??????????####??????????????? | | ???????????# ???###?????????????????????????????? | | ???????????# ????????????????????????????????????? | | ???????????##????????????????????????????????????? | | ?????????????????????????????????????????????????? | | ?????????????????????????????????????????????????? | | ?????????????????????????????????????????????????? | | ?????????????????????????????????????????????????? | | ?????????????????????????????????????????????????? | | ?????????????????????????????????????????????????? | | ?????????????????????????????????????????????????? | | ?????????????????????????????????????????????????? | | ?????????????????????????????????????????????????? | | ?????????????????????????????????????????????????? | | ?????????????????????????????????????????????????? | | ?????????????????????????????????????????????????? | | ?????????????????????????????????????????????????? | | ?????????????????????????????????????????????????? | | ?????????????????????????????????????????????????? | | ?????????????????????????????????????????????????? | | ?????????????????????????????????????????????????? | +----------------------------------------------------+ Best States ------------- Heat Dissipation 25 Energy Generation 10 Energy Capacity 250 Matter Stores 300 Matter Capacity 300 Sight Range 21 Robot Scan Range 14 Terrain Scan Density 10 Armor Coverage 150 Evasion (%) 40 Recoil Reduction 2 Item Schematics ----------------- Hcp. Storage Unit | -10/Materials | Hacked Robot Schematics ------------------ None Fabricated ------------ Nothing Repaired ---------- Nothing Alien Tech Used ----------------- None Achievements -------------- None Challenges ------------ None Game ------ Seed BarrageMultireflexCompanion Manual? 0 Play Time 00:21:56 Cumulative 123.0 hours Start 2025.09.10 @ 18:22:33 End 2025.09.10 @ 18:44:46 Sessions 1 Manual Loads 0 Difficulty Rogue Special Mode None Game No. 45 Rogue 45 Adventurer 0 Explorer 0 Win Type - Total 0 Types 0/0/0/0/0/0/0/0/0/0 Lore% 32 Gallery% 39 Achievement% 39 Wizard Run 0 Options --------- Layout 0 ASCII 1 Keyboard 1 Movement Arrows Keybinds 0 Fullscreen 1 Font 28/Smallcaps Map View 72x54 Zoom Use 0% Tactical HUD 1 Map Filters NONE Filters NONE Steam 1 RUN: db1e5bbd-768a-407d-b618-d14697d25715